bitfinex/quotes_BTCUSD_20230904
["timestamp","ask_amount","ask_price","bid_price","bid_amount"]
[1693823932375,0.02,25898.0,25896.0,0.9]
[1693823932621,0.04,25899.0,25897.0,1.12423749]
[1693823932622,0.06,25899.0,25897.0,1.12423749]
[1693823932802,0.02,25900.0,25899.0,0.9]
[1693823932999,0.02,25900.0,25899.0,1.60708678]
[1693823933768,0.02,25900.0,25899.0,1.2]
[1693823933961,0.02,25900.0,25899.0,1.3152]
[1693823934172,0.022,25900.0,25899.0,1.3822]
[1693823935886,0.024,25900.0,25899.0,1.3972]
[1693823939181,0.004,25900.0,25899.0,1.89948678]
[1693823939394,0.11126686,25906.0,25903.0,0.9]
[1693823939395,0.02,25906.0,25903.0,0.9]
[1693823939562,0.02,25906.0,25904.0,0.43675071]
[1693823939759,0.02,25906.0,25905.0,0.09]
[1693823939995,0.02,25906.0,25904.0,0.25675071]
[1693823940554,0.022,25906.0,25905.0,0.0952]
[1693823941787,0.02,25906.0,25905.0,0.0952]
[1693823942196,0.022,25906.0,25905.0,0.0952]
[1693823942424,0.02,25906.0,25905.0,0.0952]
[1693823942821,0.022,25906.0,25905.0,0.1192]
[1693823943028,0.022,25906.0,25905.0,0.4192]
[1693823943814,0.022,25906.0,25905.0,0.4422]
[1693823944416,0.23511447,25906.0,25905.0,0.4422]
[1693823944629,0.23511447,25906.0,25905.0,0.047]
[1693823944630,0.91141427,25906.0,25905.0,0.047]
[1693823944825,0.81758998,25906.0,25905.0,0.047]
[1693823945034,0.194,25904.0,25903.0,0.0952]
[1693823945460,0.234,25904.0,25903.0,0.0952]
[1693823946411,0.235,25904.0,25903.0,0.0982]
[1693823946614,0.238,25904.0,25903.0,0.0982]
[1693823947405,0.02,25903.0,25899.0,0.05070195]
[1693823947605,0.23483471,25903.0,25902.0,0.0952]
[1693823947874,0.08,25903.0,25902.0,0.0952]
[1693823948085,0.39425511,25904.0,25903.0,0.11]
[1693823948287,0.39425511,25904.0,25903.0,0.2052]
[1693823948491,0.155,25904.0,25903.0,0.2052]
[1693823948696,0.154,25904.0,25903.0,0.2052]
[1693823948907,0.54108678,25904.0,25903.0,0.2052]
[1693823949528,0.54208678,25904.0,25903.0,0.113]
[1693823949739,0.56508678,25904.0,25903.0,0.113]
[1693823951542,0.60208678,25904.0,25903.0,0.113]
[1693823951713,0.60308678,25904.0,25903.0,0.11]
[1693823951914,0.62708678,25904.0,25903.0,0.111]
[1693823952320,0.62508678,25904.0,25903.0,0.111]
[1693823952524,0.64908678,25904.0,25903.0,0.113]
[1693823953324,1.59405911,25904.0,25903.0,0.113]
[1693823953439,2.00145605,25904.0,25903.0,0.113]
[1693823953646,0.08,25897.0,25891.0,0.1272]
[1693823953847,0.54192149,25896.0,25891.0,0.1472]
[1693823954734,0.54192149,25896.0,25891.0,0.1272]
[1693823954935,0.22390129,25895.0,25891.0,0.1472]
[1693823955144,0.76582278,25895.0,25891.0,0.1472]
[1693823955359,0.61098807,25895.0,25891.0,0.1472]
[1693823955769,0.61098807,25895.0,25891.0,0.1612]
[1693823956178,0.08,25893.0,25891.0,0.014]
[1693823956588,0.08,25893.0,25886.0,0.02]
[1693823956589,0.08,25893.0,25889.0,0.1272]
[1693823957197,0.0104038,25892.0,25889.0,0.1272]
[1693823957808,0.27205822,25891.0,25889.0,0.1272]
[1693823958416,0.27205822,25891.0,25889.0,0.3172]
[1693823958773,0.27205822,25891.0,25889.0,0.3312]
[1693823959178,0.27205822,25891.0,25889.0,0.3172]
[1693823959377,0.08,25893.0,25889.0,0.3172]
[1693823959579,0.002,25891.0,25889.0,0.3312]
[1693823959779,0.004,25891.0,25889.0,0.1412]
[1693823960513,0.38708678,25890.0,25889.0,0.1412]
[1693823960654,0.97479511,25890.0,25889.0,0.014]
[1693823961045,0.97479511,25890.0,25883.0,0.01159944]
[1693823961046,0.06,25887.0,25883.0,0.01159944]
[1693823961221,0.06,25887.0,25881.0,0.301682]
[1693823961222,0.54192149,25886.0,25881.0,0.301682]
[1693823961425,0.02,25884.0,25880.0,0.2679]
[1693823961785,0.15483471,25883.0,25880.0,0.2679]
[1693823961986,0.15483471,25883.0,25882.0,0.1272]
[1693823962119,0.02,25884.0,25883.0,0.013]
[1693823962532,0.38908678,25886.0,25883.0,0.5744]
[1693823962533,0.002,25886.0,25883.0,0.5744]
[1693823962734,0.05119058,25887.0,25885.0,0.1272]
[1693823962980,0.05119058,25887.0,25886.0,0.33851653]
[1693823962981,0.04919058,25887.0,25886.0,0.33851653]
[1693823963169,0.02,25889.0,25888.0,0.1272]
[1693823963365,0.02,25889.0,25888.0,0.29291653]
[1693823963564,0.02,25890.0,25888.0,0.29291653]
[1693823963820,0.02,25889.0,25888.0,0.29291653]
[1693823964225,0.02,25889.0,25888.0,0.16571653]
[1693823964889,0.11191635,25889.0,25888.0,0.16571653]
[1693823965101,0.02,25886.0,25885.0,0.1272]
[1693823965314,0.17483471,25886.0,25885.0,0.1272]
[1693823965519,0.02,25886.0,25885.0,0.1272]
[1693823966360,0.63995205,25889.0,25885.0,0.1272]
[1693823966361,0.11201024,25889.0,25885.0,0.1272]
[1693823966573,0.02,25889.0,25888.0,0.2544]
[1693823968210,0.023,25889.0,25888.0,0.2544]
[1693823968420,0.025,25889.0,25888.0,0.2564]
[1693823969063,0.005,25889.0,25888.0,0.2564]
[1693823969705,0.23002561,25894.0,25890.0,0.02]
[1693823969706,0.09201024,25894.0,25890.0,0.02]
[1693823969918,0.09201024,25894.0,25892.0,0.1272]
[1693823969919,0.04984606,25894.0,25892.0,0.1272]
[1693823970126,0.09201024,25895.0,25892.0,0.1272]
[1693823970349,0.09201024,25895.0,25894.0,0.1272]
[1693823970968,0.2300256,25896.0,25894.0,0.4272]
[1693823971397,0.09201024,25896.0,25894.0,0.4272]
[1693823971608,0.004,25895.0,25894.0,0.4612]
[1693823972309,0.09201024,25896.0,25894.0,0.4272]
[1693823972511,0.09601024,25896.0,25894.0,0.4612]
[1693823973838,0.09401024,25896.0,25894.0,0.4422]
[1693823974066,0.09401024,25896.0,25894.0,0.4612]
[1693823974067,0.002,25895.0,25894.0,0.4612]
[1693823974523,0.02,25897.0,25896.0,0.1272]
[1693823974734,0.02,25897.0,25896.0,0.2544]
[1693823975651,0.023,25897.0,25896.0,0.2554]
[1693823977020,0.023,25897.0,25896.0,0.2574]
[1693823978968,0.023,25897.0,25896.0,0.3474]
[1693823979972,0.003,25897.0,25896.0,0.3474]
[1693823980347,0.003,25897.0,25896.0,1.05448678]
[1693823980753,0.02,25901.0,25896.0,1.05348678]
[1693823980977,0.02,25901.0,25900.0,0.1272]
[1693823981986,0.26371561,25901.0,25900.0,0.1272]
[1693823982186,0.022,25901.0,25900.0,0.1272]
[1693823982544,0.02,25901.0,25900.0,0.1272]
[1693823982744,0.022,25901.0,25900.0,0.1422]
[1693823983293,0.022,25901.0,25900.0,0.1612]
[1693823983294,0.25474501,25901.0,25900.0,0.1612]
[1693823985508,0.25474501,25901.0,25900.0,0.034]
[1693823985509,0.31090367,25901.0,25900.0,0.034]
[1693823985758,0.26159607,25901.0,25900.0,0.034]
[1693823986364,0.024,25901.0,25900.0,0.1612]
[1693823986568,0.022,25901.0,25900.0,0.1422]
[1693823986776,0.018,25901.0,25900.0,0.1442]
[1693823986986,0.02,25902.0,25900.0,0.1272]
[1693823987197,0.002,25901.0,25900.0,0.1422]
[1693823987505,0.026,25901.0,25900.0,0.1442]
[1693823987707,0.02,25902.0,25897.0,0.3]
[1693823987919,0.02,25902.0,25900.0,0.019]
[1693823987920,0.002,25901.0,25900.0,0.019]
[1693823988127,0.002,25901.0,25900.0,0.1502]
[1693823988128,0.004,25901.0,25900.0,0.1502]
[1693823988575,0.002,25901.0,25900.0,0.1462]
[1693823990269,0.004,25901.0,25900.0,0.1502]
[1693823993037,0.004,25901.0,25900.0,0.4184]
[1693823999503,0.004,25901.0,25900.0,0.1184]
[1693823999504,0.30284199,25901.0,25900.0,0.1184]
[1693824006593,0.30084199,25901.0,25900.0,0.1144]
[1693824006799,0.29884199,25901.0,25900.0,0.0954]
[1693824007055,0.30084199,25901.0,25900.0,0.1094]
[1693824009137,0.40908678,25901.0,25900.0,0.014]
[1693824009549,0.46908678,25901.0,25900.0,0.014]
[1693824009762,0.60448678,25901.0,25900.0,0.014]
[1693824009963,0.60348678,25901.0,25900.0,0.011]
[1693824010322,0.60248678,25901.0,25896.0,0.09]
[1693824010528,0.48248678,25900.0,25896.0,0.09]
[1693824010729,0.63732149,25900.0,25896.0,0.09]
[1693824010937,0.02,25897.0,25896.0,0.09]
[1693824011146,0.40708678,25897.0,25896.0,0.09]
[1693824011963,0.43108678,25897.0,25896.0,0.09]
[1693824012537,0.6605751,25897.0,25896.0,0.09]
[1693824012739,0.24872437,25896.0,25894.0,0.07154262]
[1693824012940,0.63581115,25896.0,25894.0,0.07154262]
[1693824013123,0.65581115,25896.0,25894.0,0.07154262]
[1693824013935,0.66381115,25896.0,25894.0,0.07254262]
[1693824014477,0.02,25895.0,25894.0,0.07254262]
[1693824015315,0.23798917,25895.0,25894.0,0.07254262]
[1693824015722,0.25198917,25895.0,25894.0,0.07154262]
[1693824015968,0.25998917,25895.0,25894.0,0.07254262]
[1693824019807,0.25998917,25895.0,25894.0,0.16254262]
[1693824021171,0.25998917,25895.0,25894.0,0.07254262]
[1693824029689,0.23998917,25895.0,25894.0,0.07254262]
[1693824029827,0.042,25895.0,25894.0,0.07254262]
[1693824030037,0.022,25895.0,25894.0,0.07254262]
[1693824032952,0.022,25895.0,25894.0,0.4596294]
[1693824033158,0.022,25895.0,25894.0,0.7596294]
[1693824033961,0.014,25895.0,25894.0,0.7586294]
[1693824034121,0.02,25898.0,25896.0,0.0954]
[1693824034320,0.02,25898.0,25897.0,0.0954]
[1693824035126,0.02,25900.0,25897.0,0.0954]
[1693824035497,0.02,25900.0,25899.0,0.0954]
[1693824037246,0.037,25900.0,25899.0,0.0974]
[1693824037902,0.06,25900.0,25899.0,0.0974]
[1693824038400,0.04,25900.0,25899.0,0.0974]
[1693824038598,0.04,25900.0,25899.0,0.1928]
[1693824038777,0.04,25900.0,25899.0,0.4928]
[1693824038974,0.04,25900.0,25899.0,0.87988678]
[1693824039175,0.017,25900.0,25899.0,0.87988678]
[1693824039380,0.017,25900.0,25899.0,1.03426778]
[1693824039580,0.02,25902.0,25899.0,1.03226778]
[1693824039943,0.02,25902.0,25901.0,0.0954]
[1693824041367,0.035,25902.0,25901.0,0.0964]
[1693824042163,0.3210382,25902.0,25901.0,0.0964]
[1693824042715,0.0553568,25902.0,25901.0,0.0974]
[1693824052197,0.0353568,25902.0,25901.0,0.0974]
[1693824053184,0.023,25902.0,25901.0,0.0974]
[1693824053595,0.023,25902.0,25901.0,0.12787191]
[1693824059235,0.023,25902.0,25901.0,0.42787191]
[1693824059363,0.03479665,25902.0,25901.0,0.42787191]
[1693824059865,0.023,25902.0,25901.0,0.42787191]
[1693824060972,0.29123052,25902.0,25901.0,0.42787191]
[1693824061175,0.29123052,25902.0,25901.0,0.002]
[1693824061583,0.30303364,25902.0,25901.0,0.002]
[1693824061987,0.4418899,25902.0,25901.0,0.002]
[1693824063010,0.65522275,25902.0,25901.0,0.002]
[1693824063429,0.4418899,25902.0,25901.0,0.002]
[1693824065065,0.73049459,25902.0,25901.0,0.002]
[1693824065282,0.77049459,25902.0,25901.0,0.002]
[1693824066317,0.4818899,25902.0,25901.0,0.002]
[1693824069695,0.7158991,25902.0,25901.0,0.002]
[1693824070318,0.4818899,25902.0,25901.0,0.002]
[1693824071364,0.76756565,25902.0,25901.0,0.002]
[1693824071572,0.4818899,25902.0,25901.0,0.002]
[1693824072953,0.75984648,25902.0,25901.0,0.002]
[1693824073463,0.4818899,25902.0,25901.0,0.002]
[1693824074621,0.72925905,25902.0,25901.0,0.002]
[1693824075424,0.4818899,25902.0,25901.0,0.002]
[1693824076121,0.5618899,25902.0,25901.0,0.002]
[1693824076325,0.04,25894.0,25893.0,0.18792929]
[1693824076531,0.04,25894.0,25892.0,0.1848833]
[1693824076532,0.19483471,25894.0,25892.0,0.0954]
[1693824076779,0.15483471,25893.0,25892.0,0.0954]
[1693824076941,0.19483471,25893.0,25892.0,0.0954]
[1693824077095,0.04,25893.0,25892.0,0.0954]
[1693824077317,0.04940323,25893.0,25892.0,0.0954]
[1693824077770,0.04940323,25893.0,25892.0,0.20094195]
[1693824078000,0.04,25893.0,25892.0,0.51959902]
[1693824078200,0.041,25893.0,25892.0,0.53059902]
[1693824078877,0.042,25893.0,25892.0,0.53059902]
[1693824080601,0.042,25893.0,25892.0,0.43805707]
[1693824082193,0.042,25893.0,25892.0,0.53059902]
[1693824082320,0.042,25893.0,25892.0,0.56911555]
[1693824084647,0.002,25893.0,25892.0,0.56911555]
[1693824084828,0.042,25893.0,25892.0,0.56911555]
[1693824085036,0.002,25893.0,25892.0,0.86366038]
[1693824085422,0.002,25893.0,25892.0,1.069721]
[1693824085639,0.002,25893.0,25892.0,1.002341]
[1693824088243,0.042,25893.0,25892.0,1.002341]
[1693824088454,0.002,25893.0,25892.0,1.002341]
[1693824089163,0.00189332,25893.0,25892.0,1.002341]
[1693824089367,0.00189332,25893.0,25892.0,1.18742491]
[1693824090254,0.00189332,25893.0,25892.0,1.04874429]
[1693824090645,0.00189332,25893.0,25892.0,1.04855308]
[1693824091898,0.00189332,25893.0,25892.0,1.18722271]
[1693824094784,0.00189332,25893.0,25892.0,1.24756025]
[1693824095463,0.00189332,25893.0,25892.0,1.18722271]
[1693824095696,0.00189332,25893.0,25892.0,1.00233001]
[1693824095879,0.00189332,25893.0,25892.0,1.18722271]
[1693824096091,0.00189332,25893.0,25892.0,1.00233001]
[1693824096503,0.00189332,25893.0,25892.0,1.18722271]
[1693824096732,0.00189332,25893.0,25892.0,1.24756082]
[1693824097585,0.04189332,25893.0,25892.0,1.24756082]
[1693824098134,0.34062424,25893.0,25892.0,0.56047404]
[1693824098343,0.90254573,25893.0,25892.0,0.011]
[1693824098543,0.60381481,25893.0,25892.0,0.011]
[1693824098767,0.68045409,25893.0,25892.0,0.011]
[1693824098976,0.65420893,25893.0,25892.0,0.011]
[1693824099308,0.8398353,25893.0,25892.0,0.011]
[1693824099512,0.55880893,25893.0,25892.0,0.011]
[1693824099715,0.77794942,25893.0,25892.0,0.011]
[1693824100335,0.55880893,25893.0,25892.0,0.011]
[1693824100761,0.84096423,25893.0,25892.0,0.011]
[1693824102043,0.55880893,25893.0,25892.0,0.011]
[1693824102502,0.82137119,25893.0,25892.0,0.011]
[1693824102735,0.80137119,25893.0,25892.0,0.011]
[1693824108790,0.79154236,25893.0,25892.0,0.011]
[1693824110994,0.71154236,25893.0,25892.0,0.011]
[1693824111195,0.73154236,25893.0,25892.0,0.011]
[1693824111399,0.73154236,25893.0,25892.0,0.1064]
[1693824112394,0.71154236,25893.0,25892.0,0.1064]
[1693824113024,0.4489801,25893.0,25892.0,0.1064]
[1693824113238,0.04189332,25893.0,25892.0,0.1064]
[1693824113445,0.04189332,25893.0,25892.0,0.4064]
[1693824114065,0.04189332,25893.0,25892.0,1.04228361]
[1693824114687,0.04189332,25893.0,25892.0,1.09209261]
[1693824117620,0.31059084,25893.0,25892.0,1.09209261]
[1693824117821,0.04189332,25893.0,25892.0,1.04228361]
[1693824119150,0.29660455,25893.0,25892.0,1.04228361]
[1693824120112,0.25660455,25893.0,25892.0,1.04228361]
[1693824120316,0.29660455,25893.0,25892.0,1.04228361]
[1693824121857,0.70369133,25893.0,25892.0,0.64688361]
[1693824122275,0.66113006,25893.0,25892.0,0.011]
[1693824122479,0.4489801,25893.0,25892.0,0.011]
[1693824123472,0.69927289,25893.0,25892.0,0.011]
[1693824128325,0.69927289,25893.0,25892.0,0.71042625]
[1693824132184,0.69927289,25893.0,25892.0,0.011]
[1693824135572,0.4489801,25893.0,25892.0,0.82203319]
[1693824135775,0.4489801,25893.0,25892.0,0.43585213]
[1693824136006,0.4489801,25893.0,25892.0,0.04967107]
[1693824136422,0.04,25891.0,25889.0,0.30395724]
[1693824136626,0.04,25892.0,25890.0,0.0954]
[1693824136828,0.04,25892.0,25891.0,0.0954]
[1693824137964,0.02,25892.0,25891.0,0.0954]
[1693824138170,0.04,25892.0,25891.0,0.0954]
[1693824138372,0.042,25892.0,25891.0,0.0954]
[1693824138977,0.044,25892.0,25891.0,0.0984]
[1693824140045,0.044,25892.0,25890.0,0.10467618]
[1693824140262,0.044,25892.0,25891.0,0.0954]
[1693824140889,0.042,25892.0,25891.0,0.0954]
[1693824141332,0.045,25892.0,25891.0,0.0954]
[1693824141675,0.042,25892.0,25891.0,0.0954]
[1693824142498,0.044,25892.0,25891.0,0.0954]
[1693824143512,0.044,25892.0,25891.0,0.18785724]
[1693824151993,0.044,25892.0,25890.0,0.15640472]
[1693824152197,0.044,25892.0,25890.0,0.00439919]
[1693824152550,0.044,25892.0,25890.0,0.30439919]
[1693824153080,0.044,25892.0,25891.0,0.0954]
[1693824153288,0.042,25892.0,25891.0,0.0954]
[1693824153489,0.045,25892.0,25891.0,0.0954]
[1693824153930,0.043,25892.0,25891.0,0.0954]
[1693824154320,0.046,25892.0,25891.0,0.0954]
[1693824154724,0.043,25892.0,25891.0,0.0954]
[1693824155225,0.042,25892.0,25891.0,0.0954]
[1693824155635,0.044,25892.0,25891.0,0.0954]
[1693824162659,0.04216102,25892.0,25891.0,0.0954]
[1693824171599,0.04216102,25892.0,25891.0,0.15574467]
[1693824175563,0.04216102,25892.0,25891.0,0.16014386]
[1693824180571,0.04216102,25892.0,25891.0,0.39125973]
[1693824182443,0.04216102,25892.0,25891.0,0.38686054]
[1693824187244,0.04216102,25892.0,25891.0,0.57997054]
[1693824189962,0.59296502,25892.0,25891.0,0.57997054]
[1693824197512,0.59296502,25892.0,25891.0,0.58055663]
[1693824199148,0.59296502,25892.0,25891.0,0.38744663]
[1693824199356,0.59296502,25892.0,25891.0,0.58055663]
[1693824199875,0.59296502,25892.0,25891.0,0.38744663]
[1693824200194,0.59296502,25892.0,25891.0,0.58055663]
[1693824202914,0.59296502,25892.0,25891.0,0.38744663]
[1693824213160,0.59296502,25892.0,25887.0,0.06883897]
[1693824213161,0.06,25888.0,25887.0,0.03032244]
[1693824213346,0.06,25888.0,25886.0,0.23175146]
[1693824213347,0.21483471,25888.0,25886.0,0.23175146]
[1693824213557,0.04,25886.0,25885.0,0.0798679]
[1693824213758,0.25483471,25886.0,25885.0,0.23156836]
[1693824213968,0.34012952,25886.0,25884.0,0.23156836]
[1693824214170,0.34012952,25886.0,25885.0,0.0954]
[1693824214804,0.34212952,25886.0,25885.0,0.0964]
[1693824215281,0.36412952,25886.0,25885.0,0.18898673]
[1693824215511,0.124,25886.0,25885.0,0.18898673]
[1693824215706,0.39817264,25886.0,25885.0,0.18898673]
[1693824217426,0.94132149,25886.0,25885.0,0.001]
[1693824217849,0.78648678,25886.0,25885.0,0.001]
[1693824218084,0.1,25880.0,25879.0,0.09258673]
[1693824218289,0.66192149,25880.0,25879.0,0.09258673]
[1693824218487,0.50708678,25880.0,25879.0,0.09258673]
[1693824218816,0.1,25880.0,25879.0,0.0954]
[1693824219575,0.1,25880.0,25879.0,0.18788238]
[1693824219777,0.1,25880.0,25877.0,0.06403195]
[1693824219985,0.1,25880.0,25879.0,0.0954]
[1693824220187,0.122,25880.0,25879.0,0.0954]
[1693824220395,0.52908678,25880.0,25878.0,0.0954]
[1693824220609,0.73827833,25880.0,25878.0,0.0954]
[1693824220817,0.12,25880.0,25879.0,0.0954]
[1693824221027,0.122,25880.0,25879.0,0.0954]
[1693824221410,0.12,25880.0,25879.0,0.0954]
[1693824221616,0.121,25880.0,25879.0,0.0954]
[1693824221822,0.125,25880.0,25879.0,0.0954]
[1693824222203,0.134,25880.0,25879.0,0.0954]
[1693824223470,0.129,25880.0,25879.0,0.0954]
[1693824223962,0.163,25880.0,25879.0,0.0954]
[1693824227275,0.143,25880.0,25879.0,0.0954]
[1693824229490,0.023,25880.0,25879.0,0.0954]
[1693824229878,0.023,25880.0,25879.0,0.16086]
[1693824230082,0.023,25880.0,25879.0,0.3954]
[1693824230283,0.009,25880.0,25879.0,0.3954]
[1693824230488,0.12,25883.0,25879.0,0.3954]
[1693824230742,0.002,25880.0,25879.0,0.303]
[1693824230945,0.005,25880.0,25879.0,0.3994]
[1693824231125,0.003,25880.0,25879.0,0.3964]
[1693824231331,0.003,25880.0,25879.0,0.3994]
[1693824231332,0.005,25880.0,25879.0,0.3994]
[1693824234015,0.005,25880.0,25879.0,0.46912]
[1693824234369,0.005,25880.0,25879.0,0.3994]
[1693824234894,0.005,25880.0,25879.0,0.4699]
[1693824235114,0.005,25880.0,25879.0,0.4726]
[1693824235324,0.005,25880.0,25879.0,0.3994]
[1693824236724,0.005,25880.0,25879.0,0.0994]
[1693824238313,0.005,25880.0,25879.0,0.15702059]
[1693824238520,0.005,25880.0,25879.0,0.45702059]
[1693824239140,0.125,25880.0,25879.0,0.0994]
[1693824240169,0.125,25880.0,25879.0,0.0954]
[1693824240170,0.12,25880.0,25879.0,0.0954]
[1693824240379,0.143,25880.0,25879.0,0.001]
[1693824240788,0.142,25880.0,25879.0,0.003]
[1693824240987,0.143,25880.0,25879.0,0.004]
[1693824241232,0.141,25880.0,25879.0,0.001]
[1693824241435,0.146,25880.0,25879.0,0.002]
[1693824242227,0.146,25880.0,25879.0,0.0974]
[1693824247235,0.166,25880.0,25879.0,0.0974]
[1693824260176,0.166,25880.0,25879.0,0.002]
[1693824260714,0.166,25880.0,25879.0,0.0974]
[1693824268783,0.026,25880.0,25879.0,0.0974]
[1693824268999,0.026,25880.0,25879.0,0.58851089]
[1693824269000,0.01702908,25880.0,25879.0,0.58851089]
[1693824269206,0.01702908,25880.0,25879.0,0.70949121]
[1693824269406,0.01702908,25880.0,25879.0,0.89361691]
[1693824269628,0.01702908,25880.0,25879.0,0.89175691]
[1693824269800,0.01702908,25880.0,25879.0,0.89205691]
[1693824270001,0.01702908,25880.0,25879.0,0.89151691]
[1693824270198,0.01702908,25880.0,25879.0,0.89691691]
[1693824270405,0.01702908,25880.0,25879.0,0.75888802]
[1693824270652,0.01702908,25880.0,25879.0,0.75864802]
[1693824270823,0.01702908,25880.0,25879.0,0.75834802]
[1693824271023,0.01702908,25880.0,25879.0,0.74784802]
[1693824271247,0.01702908,25880.0,25879.0,0.79258997]
[1693824271450,0.01702908,25880.0,25879.0,0.72694997]
[1693824272445,0.01702908,25880.0,25879.0,0.49628232]
[1693824272626,0.01702908,25880.0,25879.0,0.45776579]
[1693824273236,0.01702908,25880.0,25879.0,0.45676579]
[1693824273660,0.01902908,25880.0,25879.0,0.45976579]
[1693824273863,0.01702908,25880.0,25879.0,0.45676579]
[1693824274069,0.01702908,25880.0,25879.0,0.45576579]
[1693824274273,0.01802908,25880.0,25879.0,0.45876579]
[1693824274476,0.02002908,25880.0,25879.0,0.53376579]
[1693824274679,0.02002908,25880.0,25879.0,0.48776579]
[1693824274897,0.01802908,25880.0,25879.0,0.47876579]
[1693824275306,0.01902908,25880.0,25879.0,0.48376579]
[1693824276153,0.01902908,25880.0,25879.0,0.54053534]
[1693824277790,0.01902908,25880.0,25879.0,0.60839534]
[1693824278004,0.12,25882.0,25880.0,0.0954]
[1693824278200,0.12,25882.0,25881.0,0.43951514]
[1693824278408,0.12,25882.0,25881.0,0.73951514]
[1693824278998,0.118701,25882.0,25881.0,0.73951514]
[1693824279210,0.122701,25882.0,25881.0,0.73951514]
[1693824280368,0.131701,25882.0,25881.0,0.74051514]
[1693824280800,0.127701,25882.0,25881.0,0.74051514]
[1693824281152,0.140701,25882.0,25881.0,0.74151514]
[1693824285166,0.140701,25882.0,25881.0,0.75324109]
[1693824288355,0.140701,25882.0,25881.0,0.7838118]
[1693824300328,0.140701,25882.0,25881.0,0.84417761]
[1693824303256,0.41784541,25882.0,25881.0,0.27581628]
[1693824303465,0.41784541,25882.0,25881.0,0.12518384]
[1693824303668,0.41784541,25882.0,25881.0,0.03257071]
[1693824304302,0.80493219,25882.0,25881.0,0.03257071]
[1693824306169,0.80493219,25882.0,25881.0,0.002]
[1693824306376,0.81320196,25882.0,25881.0,0.002]
[1693824306664,0.54778778,25882.0,25881.0,0.002]
[1693824306837,0.64318778,25882.0,25881.0,0.002]
[1693824307263,0.64778778,25882.0,25881.0,0.002]
[1693824307503,0.74318778,25882.0,25881.0,0.002]
[1693824307705,0.118701,25877.0,25876.0,0.09261313]
[1693824307947,0.29353571,25877.0,25876.0,0.09261313]
[1693824308186,0.138701,25877.0,25876.0,0.09261313]
[1693824308404,0.52578778,25877.0,25876.0,0.09261313]
[1693824309042,0.52578778,25877.0,25876.0,0.07329438]
[1693824309301,0.138577,25877.0,25876.0,0.30760087]
[1693824309503,0.138577,25877.0,25876.0,0.0954]
[1693824309909,0.162577,25877.0,25876.0,0.0954]
[1693824310088,0.186577,25877.0,25876.0,0.0954]
[1693824313352,0.82378448,25877.0,25876.0,0.0954]
[1693824314721,0.186577,25877.0,25876.0,0.0954]
[1693824316737,0.81842443,25877.0,25876.0,0.0954]
[1693824318196,0.57366378,25877.0,25876.0,0.0954]
[1693824318821,0.81064659,25877.0,25876.0,0.0954]
[1693824319578,0.57366378,25877.0,25876.0,0.0954]
[1693824330017,0.186577,25877.0,25876.0,0.0954]
[1693824340570,0.186577,25877.0,25876.0,0.0904]
[1693824342472,0.186577,25877.0,25876.0,0.15077755]
[1693824345382,0.186577,25877.0,25876.0,0.24323483]
[1693824348981,0.186577,25877.0,25876.0,0.38192075]
[1693824349380,0.186577,25877.0,25876.0,0.28946347]
[1693824350454,0.186577,25877.0,25876.0,0.47437803]
[1693824350658,0.186577,25877.0,25876.0,0.33569211]
[1693824350843,0.186577,25877.0,25876.0,0.38192075]
[1693824351048,0.048,25877.0,25876.0,0.38192075]
[1693824351259,0.088,25877.0,25876.0,0.38192075]
[1693824351462,0.088,25877.0,25876.0,0.47077755]
[1693824352422,0.064,25877.0,25876.0,0.47077755]
[1693824352643,0.049,25877.0,25876.0,0.47077755]
[1693824353099,0.061,25877.0,25876.0,0.47177755]
[1693824353454,0.049,25877.0,25876.0,0.47077755]
[1693824353883,0.021,25877.0,25876.0,0.47177755]
[1693824354283,0.061,25877.0,25876.0,0.47177755]
[1693824355008,0.021,25877.0,25876.0,0.47177755]
[1693824357195,0.04949362,25882.0,25877.0,0.02]
[1693824357405,0.18807062,25882.0,25881.0,0.18804056]
[1693824357830,0.138577,25882.0,25881.0,0.18804056]
[1693824358349,0.155577,25882.0,25881.0,0.18804056]
[1693824358518,0.138577,25882.0,25881.0,0.18804056]
[1693824358907,0.162577,25882.0,25881.0,0.3280014]
[1693824359404,0.181577,25882.0,25881.0,0.18904056]
[1693824360221,0.162577,25882.0,25881.0,0.18904056]
[1693824360603,0.186577,25882.0,25881.0,0.19104056]
[1693824365203,0.162577,25882.0,25881.0,0.19004056]
[1693824365398,0.162577,25882.0,25881.0,0.18804056]
[1693824365399,0.138577,25882.0,25881.0,0.18804056]
[1693824365603,0.137577,25882.0,25881.0,0.19004056]
[1693824365804,0.157577,25882.0,25881.0,0.19004056]
[1693824366213,0.146577,25882.0,25881.0,0.0964]
[1693824366368,0.157577,25882.0,25881.0,0.0974]
[1693824366567,0.059,25882.0,25881.0,0.1174]
[1693824366771,0.059,25882.0,25881.0,0.21004056]
[1693824366973,0.059,25882.0,25881.0,0.51004056]
[1693824367395,0.059,25882.0,25881.0,0.50992613]
[1693824370238,0.059,25882.0,25881.0,0.4174]
[1693824375502,0.059,25882.0,25881.0,0.44786873]
[1693824379429,0.059,25882.0,25881.0,0.06151591]
[1693824379635,0.059,25882.0,25879.0,0.44467234]
[1693824379636,0.059,25882.0,25879.0,0.22710974]
[1693824379847,0.059,25882.0,25881.0,0.0954]
[1693824380262,0.117577,25882.0,25881.0,0.0954]
[1693824380469,0.3914348,25882.0,25881.0,0.0954]
[1693824381489,0.126577,25882.0,25881.0,0.0954]
[1693824381694,0.127577,25882.0,25881.0,0.0954]
[1693824382279,0.126577,25882.0,25881.0,0.0954]